Workbook

Sheet Лист2

Sheet следующая
A1: Школа | F1: Утвердил: | G1: должность | H1: Директор
A2: Меню приготавливаемых блюд | G2: фамилия
A3: Возрастная категория | E3: 1-4 классы | G3: дата | H3: 16 | I3: 9 | J3: 2024
H4: день | I4: месяц | J4: год
A5: Неделя | B5: День недели | C5: Прием пищи | D5: Раздел меню | E5: Блюда | F5: Вес блюда, г | G5: Белки | H5: Жиры | I5: Углеводы | J5: Калорийность | K5: № рецептуры | L5: Цена
A6: 1 | B6: 1 | C6: Завтрак | D6: гор.блюдо | E6: Каша пшенная молочная с маслом сливочным | F6: 180 | G6: 6.89 | H6: 8.46 | I6: 31.07 | J6: 229 | K6: 189
E7: Сыр (порциями) | F7: 15 | G7: 3.95 | H7: 3.99 | I7: 0 | J7: 52 | K7: 14
D8: гор.напиток | E8: Какао-напиток на молоке | F8: 200 | G8: 3.86 | H8: 3.84 | I8: 14.7 | J8: 108 | K8: 415
D9: хлеб | E9: Батон нарезной из муки высшего сорта | F9: 25 | G9: 1.93 | H9: 0.75 | I9: 12.53 | J9: 65 | K9: 1
D10: фрукты | E10: Фрукты (яблоки) | F10: 150 | G10: 0.4 | H10: 0.4 | I10: 9.8 | J10: 44 | K10: 403
D13: итого | F13: =SUM(F6:F12) -> 570 | G13: =SUM(G6:G12) -> 17.03 | H13: 17.44 | I13: 68.1 | J13: 498 | L13: =SUM(L6:L12) -> 0
A14: =A6 -> 1 | B14: =B6 -> 1 | C14: Обед | D14: закуска | E14: Овощи свежие порционно ( огурец) | F14: 60 | G14: 0.32 | H14: 0.04 | I14: 0.94 | J14: 22 | K14: 21
D15: 1 блюдо | E15: Суп картофельный с рисом и птицей, сметаной (5/5) | F15: 200 | G15: 3.44 | H15: 4.04 | I15: 17.32 | J15: 119 | K15: 101
D16: 2 блюдо | E16: Биточки рубленые мясные | F16: 90 | G16: 13.83 | H16: 11.75 | I16: 11.28 | J16: 206 | K16: 302
D17: гарнир | E17: Пюре картофельное | F17: 150 | G17: 3.33 | H17: 5.48 | I17: 22.02 | J17: 150 | K17: 335
D18: напиток | E18: Кисель из кураги | F18: 200 | G18: 1.04 | H18: 0.06 | I18: 36.56 | J18: 150 | K18: 406
D19: хлеб бел. | E19: Батон нарезной из муки высшего сорта | F19: 25 | G19: 1.93 | H19: 0.75 | I19: 12.53 | J19: 65 | K19: 1
D20: хлеб черн. | E20: Хлеб ржано-пшеничный обогащенный | F20: 40 | G20: 2.64 | H20: 0.48 | I20: 15.8 | J20: 78 | K20: 2
D23: итого | F23: =SUM(F14:F22) -> 765 | G23: =SUM(G14:G22) -> 26.53 | H23: 22.6 | I23: 116.45 | J23: 790 | L23: =SUM(L14:L22) -> 0
A24: =A6 -> 1 | B24: =B6 -> 1 | C24: Итого за день: | F24: =F13+F23 -> 1335 | G24: =G13+G23 -> 43.56 | H24: 40.04 | I24: 184.55 | J24: 1288 | L24: =L13+L23 -> 0
A25: 1 | B25: 2 | C25: Завтрак | D25: гор.блюдо
D27: гор.напиток
D28: хлеб
D29: фрукты
D32: итого | F32: =SUM(F25:F31) -> 0 | G32: =SUM(G25:G31) -> 0 | H32: 0 | I32: 0 | J32: 0 | L32: 0
A33: =A25 -> 1 | B33: =B25 -> 2 | C33: Обед | D33: закуска
D34: 1 блюдо
D35: 2 блюдо
D36: гарнир
D37: напиток
D38: хлеб бел.
D39: хлеб черн.
D42: итого | F42: =SUM(F33:F41) -> 0 | G42: =SUM(G33:G41) -> 0 | H42: 0 | I42: 0 | J42: 0 | L42: 0
A43: =A25 -> 1 | B43: =B25 -> 2 | C43: Итого за день: | F43: =F32+F42 -> 0 | G43: =G32+G42 -> 0 | H43: 0 | I43: 0 | J43: 0 | L43: 0
A44: 1 | B44: 3 | C44: Завтрак | D44: гор.блюдо
D46: гор.напиток
D47: хлеб
D48: фрукты
D51: итого | F51: =SUM(F44:F50) -> 0 | G51: =SUM(G44:G50) -> 0 | H51: 0 | I51: 0 | J51: 0 | L51: 0
A52: =A44 -> 1 | B52: =B44 -> 3 | C52: Обед | D52: закуска
D53: 1 блюдо
D54: 2 блюдо
D55: гарнир
D56: напиток
D57: хлеб бел.
D58: хлеб черн.
D61: итого | F61: =SUM(F52:F60) -> 0 | G61: =SUM(G52:G60) -> 0 | H61: 0 | I61: 0 | J61: 0 | L61: 0
A62: =A44 -> 1 | B62: =B44 -> 3 | C62: Итого за день: | F62: =F51+F61 -> 0 | G62: =G51+G61 -> 0 | H62: 0 | I62: 0 | J62: 0 | L62: 0
A63: 1 | B63: 4 | C63: Завтрак | D63: гор.блюдо
D65: гор.напиток
D66: хлеб
D67: фрукты
D70: итого | F70: =SUM(F63:F69) -> 0 | G70: =SUM(G63:G69) -> 0 | H70: 0 | I70: 0 | J70: 0 | L70: 0
A71: =A63 -> 1 | B71: =B63 -> 4 | C71: Обед | D71: закуска
D72: 1 блюдо
D73: 2 блюдо
D74: гарнир
D75: напиток
D76: хлеб бел.
D77: хлеб черн.
D80: итого | F80: =SUM(F71:F79) -> 0 | G80: =SUM(G71:G79) -> 0 | H80: 0 | I80: 0 | J80: 0 | L80: 0
A81: =A63 -> 1 | B81: =B63 -> 4 | C81: Итого за день: | F81: =F70+F80 -> 0 | G81: =G70+G80 -> 0 | H81: 0 | I81: 0 | J81: 0 | L81: 0
A82: 1 | B82: 5 | C82: Завтрак | D82: гор.блюдо
D84: гор.напиток
D85: хлеб
D86: фрукты
D89: итого | F89: =SUM(F82:F88) -> 0 | G89: =SUM(G82:G88) -> 0 | H89: 0 | I89: 0 | J89: 0 | L89: 0
A90: =A82 -> 1 | B90: =B82 -> 5 | C90: Обед | D90: закуска
D91: 1 блюдо
D92: 2 блюдо
D93: гарнир
D94: напиток
D95: хлеб бел.
D96: хлеб черн.
D99: итого | F99: =SUM(F90:F98) -> 0 | G99: =SUM(G90:G98) -> 0 | H99: 0 | I99: 0 | J99: 0 | L99: 0
A100: =A82 -> 1 | B100: =B82 -> 5 | C100: Итого за день: | F100: =F89+F99 -> 0 | G100: =G89+G99 -> 0 | H100: 0 | I100: 0 | J100: 0 | L100: 0
A101: 2 | B101: 1 | C101: Завтрак | D101: гор.блюдо
D103: гор.напиток
D104: хлеб
D105: фрукты
D108: итого | F108: =SUM(F101:F107) -> 0 | G108: =SUM(G101:G107) -> 0 | H108: 0 | I108: 0 | J108: 0 | L108: =SUM(L101:L107) -> 0
A109: =A101 -> 2 | B109: =B101 -> 1 | C109: Обед | D109: закуска
D110: 1 блюдо
D111: 2 блюдо
D112: гарнир
D113: напиток
D114: хлеб бел.
D115: хлеб черн.
D118: итого | F118: =SUM(F109:F117) -> 0 | G118: =SUM(G109:G117) -> 0 | H118: 0 | I118: 0 | J118: 0 | L118: =SUM(L109:L117) -> 0
A119: =A101 -> 2 | B119: =B101 -> 1 | C119: Итого за день: | F119: =F108+F118 -> 0 | G119: =G108+G118 -> 0 | H119: 0 | I119: 0 | J119: 0 | L119: 0
A120: 2 | B120: 2 | C120: Завтрак | D120: гор.блюдо
D122: гор.напиток
D123: хлеб
D124: фрукты
D127: итого | F127: =SUM(F120:F126) -> 0 | G127: =SUM(G120:G126) -> 0 | H127: 0 | I127: 0 | J127: 0 | L127: =SUM(L120:L126) -> 0
A128: =A120 -> 2 | B128: =B120 -> 2 | C128: Обед | D128: закуска
D129: 1 блюдо
D130: 2 блюдо
D131: гарнир
D132: напиток
D133: хлеб бел.
D134: хлеб черн.
D137: итого | F137: =SUM(F128:F136) -> 0 | G137: =SUM(G128:G136) -> 0 | H137: 0 | I137: 0 | J137: 0 | L137: =SUM(L128:L136) -> 0
A138: =A120 -> 2 | B138: =B120 -> 2 | C138: Итого за день: | F138: =F127+F137 -> 0 | G138: =G127+G137 -> 0 | H138: 0 | I138: 0 | J138: 0 | L138: 0
A139: 2 | B139: 3 | C139: Завтрак | D139: гор.блюдо
D141: гор.напиток
D142: хлеб
D143: фрукты
D146: итого | F146: =SUM(F139:F145) -> 0 | G146: =SUM(G139:G145) -> 0 | H146: 0 | I146: 0 | J146: 0 | L146: =SUM(L139:L145) -> 0
A147: =A139 -> 2 | B147: =B139 -> 3 | C147: Обед | D147: закуска
D148: 1 блюдо
D149: 2 блюдо
D150: гарнир
D151: напиток
D152: хлеб бел.
D153: хлеб черн.
D156: итого | F156: =SUM(F147:F155) -> 0 | G156: =SUM(G147:G155) -> 0 | H156: 0 | I156: 0 | J156: 0 | L156: =SUM(L147:L155) -> 0
A157: =A139 -> 2 | B157: =B139 -> 3 | C157: Итого за день: | F157: =F146+F156 -> 0 | G157: =G146+G156 -> 0 | H157: 0 | I157: 0 | J157: 0 | L157: 0
A158: 2 | B158: 4 | C158: Завтрак | D158: гор.блюдо
D160: гор.напиток
D161: хлеб
D162: фрукты
D165: итого | F165: =SUM(F158:F164) -> 0 | G165: =SUM(G158:G164) -> 0 | H165: 0 | I165: 0 | J165: 0 | L165: =SUM(L158:L164) -> 0
A166: =A158 -> 2 | B166: =B158 -> 4 | C166: Обед | D166: закуска
D167: 1 блюдо
D168: 2 блюдо
D169: гарнир
D170: напиток
D171: хлеб бел.
D172: хлеб черн.
D175: итого | F175: =SUM(F166:F174) -> 0 | G175: =SUM(G166:G174) -> 0 | H175: 0 | I175: 0 | J175: 0 | L175: =SUM(L166:L174) -> 0
A176: =A158 -> 2 | B176: =B158 -> 4 | C176: Итого за день: | F176: =F165+F175 -> 0 | G176: =G165+G175 -> 0 | H176: 0 | I176: 0 | J176: 0 | L176: 0
A177: 2 | B177: 5 | C177: Завтрак | D177: гор.блюдо
D179: гор.напиток
D180: хлеб
D181: фрукты
D184: итого | F184: =SUM(F177:F183) -> 0 | G184: =SUM(G177:G183) -> 0 | H184: 0 | I184: 0 | J184: 0 | L184: =SUM(L177:L183) -> 0
A185: =A177 -> 2 | B185: =B177 -> 5 | C185: Обед | D185: закуска
D186: 1 блюдо
D187: 2 блюдо
D188: гарнир
D189: напиток
D190: хлеб бел.
D191: хлеб черн.
D194: итого | F194: =SUM(F185:F193) -> 0 | G194: =SUM(G185:G193) -> 0 | H194: 0 | I194: 0 | J194: 0 | L194: =SUM(L185:L193) -> 0
A195: =A177 -> 2 | B195: =B177 -> 5 | C195: Итого за день: | F195: =F184+F194 -> 0 | G195: =G184+G194 -> 0 | H195: 0 | I195: 0 | J195: 0 | L195: 0
C196: Среднее значение за период: | F196: =(F24+F43+F62+F81+F100+F119+F138+F157+F176+F195)/(IF(F24=0,0,1)+IF(F43=0,0,1)+IF(F62=0,0,1)+IF(F81=0,0,1)+IF(F100=0,0,1)+IF(F119=0,0,1)+IF(F138=0,0,1)+IF(F157=0,0,1)+IF(F176=0,0,1)+IF(F195=0,0,1)) -> 1335 | G196: =(G24+G43+G62+G81+G100+G119+G138+G157+G176+G195)/(IF(G24=0,0,1)+IF(G43=0,0,1)+IF(G62=0,0,1)+IF(G81=0,0,1)+IF(G100=0,0,1)+IF(G119=0,0,1)+IF(G138=0,0,1)+IF(G157=0,0,1)+IF(G176=0,0,1)+IF(G195=0,0,1)) -> 43.56 | H196: 40.04 | I196: 184.55 | J196: 1288 | L196: =(L24+L43+L62+L81+L100+L119+L138+L157+L176+L195)/(IF(L24=0,0,1)+IF(L43=0,0,1)+IF(L62=0,0,1)+IF(L81=0,0,1)+IF(L100=0,0,1)+IF(L119=0,0,1)+IF(L138=0,0,1)+IF(L157=0,0,1)+IF(L176=0,0,1)+IF(L195=0,0,1)) -> 

Sheet 1-4 кл
A1: Школа | C1: МБОУ ООШ № 22 | F1: Утвердил: | G1: должность | H1: Директор
A2: Типовое меню приготавливаемых блюд | G2: фамилия | H2: Перминова Людмила Николаевна
A3: Возрастная категория | E3: 1-4 классы | G3: дата | H3: 7 | I3: 10 | J3: 2024
H4: день | I4: месяц | J4: год
A5: =#REF! ->  | B5: =#REF! ->  | C5: Итого за день: | F5: =#REF!+#REF! ->  | G5: =#REF!+#REF! ->  | H5: =#REF!+#REF! ->  | I5: =#REF!+#REF! ->  | J5: =#REF!+#REF! ->  | L5: =#REF!+#REF! -> 
A6: 2 | B6: 2 | C6: Завтрак | D6: гор.блюдо
D8: гор.напиток
D9: хлеб
D10: фрукты
D13: итого | F13: =SUM(F6:F12) -> 0 | G13: =SUM(G6:G12) -> 0 | H13: 0 | I13: 0 | J13: 0 | L13: =SUM(L6:L12) -> 0
A14: =A6 -> 2 | B14: =B6 -> 2 | C14: Обед | D14: закуска
D15: 1 блюдо
D16: 2 блюдо
D17: гарнир
D18: напиток
D19: хлеб бел.
D20: хлеб черн.
D23: итого | F23: =SUM(F14:F22) -> 0 | G23: =SUM(G14:G22) -> 0 | H23: 0 | I23: 0 | J23: 0 | L23: =SUM(L14:L22) -> 0
A24: =A6 -> 2 | B24: =B6 -> 2 | C24: Итого за день: | F24: =F13+F23 -> 0 | G24: =G13+G23 -> 0 | H24: =H13+H23 -> 0 | I24: =I13+I23 -> 0 | J24: =J13+J23 -> 0 | L24: 0
A25: 2 | B25: 3 | C25: Завтрак | D25: гор.блюдо
D27: гор.напиток
D28: хлеб
D29: фрукты
D32: итого | F32: =SUM(F25:F31) -> 0 | G32: =SUM(G25:G31) -> 0 | H32: 0 | I32: 0 | J32: 0 | L32: =SUM(L25:L31) -> 0
A33: =A25 -> 2 | B33: =B25 -> 3 | C33: Обед | D33: закуска
D34: 1 блюдо
D35: 2 блюдо
D36: гарнир
D37: напиток
D38: хлеб бел.
D39: хлеб черн.
D42: итого | F42: =SUM(F33:F41) -> 0 | G42: =SUM(G33:G41) -> 0 | H42: 0 | I42: 0 | J42: 0 | L42: =SUM(L33:L41) -> 0
A43: =A25 -> 2 | B43: =B25 -> 3 | C43: Итого за день: | F43: =F32+F42 -> 0 | G43: =G32+G42 -> 0 | H43: =H32+H42 -> 0 | I43: =I32+I42 -> 0 | J43: =J32+J42 -> 0 | L43: 0
A44: 2 | B44: 4 | C44: Завтрак | D44: гор.блюдо
D46: гор.напиток
D47: хлеб
D48: фрукты
D51: итого | F51: =SUM(F44:F50) -> 0 | G51: =SUM(G44:G50) -> 0 | H51: 0 | I51: 0 | J51: 0 | L51: =SUM(L44:L50) -> 0
A52: =A44 -> 2 | B52: =B44 -> 4 | C52: Обед | D52: закуска
D53: 1 блюдо
D54: 2 блюдо
D55: гарнир
D56: напиток
D57: хлеб бел.
D58: хлеб черн.
D61: итого | F61: =SUM(F52:F60) -> 0 | G61: =SUM(G52:G60) -> 0 | H61: 0 | I61: 0 | J61: 0 | L61: =SUM(L52:L60) -> 0
A62: =A44 -> 2 | B62: =B44 -> 4 | C62: Итого за день: | F62: =F51+F61 -> 0 | G62: =G51+G61 -> 0 | H62: =H51+H61 -> 0 | I62: =I51+I61 -> 0 | J62: =J51+J61 -> 0 | L62: 0
A63: 2 | B63: 5 | C63: Завтрак | D63: гор.блюдо
D65: гор.напиток
D66: хлеб
D67: фрукты
D70: итого | F70: =SUM(F63:F69) -> 0 | G70: =SUM(G63:G69) -> 0 | H70: 0 | I70: 0 | J70: 0 | L70: =SUM(L63:L69) -> 0
A71: =A63 -> 2 | B71: =B63 -> 5 | C71: Обед | D71: закуска
D72: 1 блюдо
D73: 2 блюдо
D74: гарнир
D75: напиток
D76: хлеб бел.
D77: хлеб черн.
D80: итого | F80: =SUM(F71:F79) -> 0 | G80: =SUM(G71:G79) -> 0 | H80: 0 | I80: 0 | J80: 0 | L80: =SUM(L71:L79) -> 0
A81: =A63 -> 2 | B81: =B63 -> 5 | C81: Итого за день: | F81: =F70+F80 -> 0 | G81: =G70+G80 -> 0 | H81: =H70+H80 -> 0 | I81: =I70+I80 -> 0 | J81: =J70+J80 -> 0 | L81: 0
C82: Среднее значение за период: | F82: =(#REF!+#REF!+#REF!+#REF!+#REF!+F5+F24+F43+F62+F81)/(IF(#REF!=0,0,1)+IF(#REF!=0,0,1)+IF(#REF!=0,0,1)+IF(#REF!=0,0,1)+IF(#REF!=0,0,1)+IF(F5=0,0,1)+IF(F24=0,0,1)+IF(F43=0,0,1)+IF(F62=0,0,1)+IF(F81=0,0,1)) ->  | G82: =(#REF!+#REF!+#REF!+#REF!+#REF!+G5+G24+G43+G62+G81)/(IF(#REF!=0,0,1)+IF(#REF!=0,0,1)+IF(#REF!=0,0,1)+IF(#REF!=0,0,1)+IF(#REF!=0,0,1)+IF(G5=0,0,1)+IF(G24=0,0,1)+IF(G43=0,0,1)+IF(G62=0,0,1)+IF(G81=0,0,1)) ->  | H82: =(#REF!+#REF!+#REF!+#REF!+#REF!+H5+H24+H43+H62+H81)/(IF(#REF!=0,0,1)+IF(#REF!=0,0,1)+IF(#REF!=0,0,1)+IF(#REF!=0,0,1)+IF(#REF!=0,0,1)+IF(H5=0,0,1)+IF(H24=0,0,1)+IF(H43=0,0,1)+IF(H62=0,0,1)+IF(H81=0,0,1)) ->  | I82: =(#REF!+#REF!+#REF!+#REF!+#REF!+I5+I24+I43+I62+I81)/(IF(#REF!=0,0,1)+IF(#REF!=0,0,1)+IF(#REF!=0,0,1)+IF(#REF!=0,0,1)+IF(#REF!=0,0,1)+IF(I5=0,0,1)+IF(I24=0,0,1)+IF(I43=0,0,1)+IF(I62=0,0,1)+IF(I81=0,0,1)) ->  | J82: =(#REF!+#REF!+#REF!+#REF!+#REF!+J5+J24+J43+J62+J81)/(IF(#REF!=0,0,1)+IF(#REF!=0,0,1)+IF(#REF!=0,0,1)+IF(#REF!=0,0,1)+IF(#REF!=0,0,1)+IF(J5=0,0,1)+IF(J24=0,0,1)+IF(J43=0,0,1)+IF(J62=0,0,1)+IF(J81=0,0,1)) ->  | L82: =(#REF!+#REF!+#REF!+#REF!+#REF!+L5+L24+L43+L62+L81)/(IF(#REF!=0,0,1)+IF(#REF!=0,0,1)+IF(#REF!=0,0,1)+IF(#REF!=0,0,1)+IF(#REF!=0,0,1)+IF(L5=0,0,1)+IF(L24=0,0,1)+IF(L43=0,0,1)+IF(L62=0,0,1)+IF(L81=0,0,1)) -> 
A83: Неделя | B83: День недели | C83: Прием пищи | D83: Раздел меню | E83: Блюда | F83: Вес блюда, г | G83: Белки | H83: Жиры | I83: Углеводы | J83: Калорийность | K83: № рецептуры | L83: Цена
A84: 2 | B84: 1 | C84: Завтрак | D84: гор.блюдо | E84: Каша пшенная молочная с маслом сливочным | F84: 180 | G84: 6.8 | H84: 7.3 | I84: 23.5 | J84: 223 | K84: 189 | L84: 25.5
E85: Сыр (порциями) | F85: 15 | G85: 3.95 | H85: 3.99 | I85: 0 | J85: 52 | K85: 14 | L85: 14.4
D86: гор.напиток | E86: Какао на молоке | F86: 200 | G86: 3.86 | H86: 3.84 | I86: 14.7 | J86: 108 | K86: 432 | L86: 15.5
D87: хлеб | E87: Батон нарезной из муки высшего сорта | F87: 25 | G87: 1.93 | H87: 0.75 | I87: 12.53 | J87: 65 | K87: 1 | L87: 2.2
D88: фрукты | E88: Йогурт в индивидуальной упаковке, м.д.ж. 2,5% | F88: 125 | G88: 3.1 | H88: 2.5 | I88: 18 | J88: 107 | K88: 3 | L88: 33.4
D89: итого | F89: =SUM(F84:F88) -> 545 | G89: =SUM(G84:G88) -> 19.64 | H89: =SUM(H84:H88) -> 18.38 | I89: =SUM(I84:I88) -> 68.73 | J89: =SUM(J84:J88) -> 555 | L89: =SUM(L84:L88) -> 91
A90: =A84 -> 2 | B90: =B84 -> 1 | C90: Обед | D90: закуска | E90: Овощи свежие порционно ( огурец),масло растительное | F90: 60 | G90: 0.52 | H90: 4.06 | I90: 2.57 | J90: 52 | K90: 21 | L90: 13.4
D91: 1 блюдо | E91: Суп картофельный с макаронами, сметаной и птицей | F91: 210 | G91: 4.34 | H91: 5.11 | I91: 15.88 | J91: 131 | K91: 112 | L91: 19.4
D92: 2 блюдо | E92: Фрикадельки тушеные в соусе сметанном | F92: 90 | G92: 10.17 | H92: 11.14 | I92: 15.75 | J92: 162 | K92: 288/255 | L92: 52.3
D93: гарнир | E93: Каша гречневая рассыпчатая | F93: 150 | G93: 4.41 | H93: 3.36 | I93: 33.13 | J93: 176 | K93: 181 | L93: 15.9
D94: напиток | E94: Компот из фруктов свежих | F94: 200 | G94: 0.08 | H94: 0.04 | I94: 21.1 | J94: 87 | K94: 439 | L94: 11
D95: хлеб бел. | E95: Хлеб пшеничный | F95: 25 | G95: 1.16 | H95: 0.45 | I95: 7.52 | J95: 39 | K95: 1 | L95: 2.2
D96: хлеб черн. | E96: Хлеб ржано-пшеничный обагащенный витаминным комплексом | F96: 40 | G96: 2.64 | H96: 0.48 | I96: 15.8 | J96: 78 | K96: 2 | L96: 2.8
D97: итого | F97: =SUM(F90:F96) -> 775 | G97: =SUM(G90:G96) -> 23.32 | H97: =SUM(H90:H96) -> 24.64 | I97: =SUM(I90:I96) -> 111.75 | J97: =SUM(J90:J96) -> 725 | L97: =SUM(L90:L96) -> 117
A98: =A84 -> 2 | B98: =B84 -> 1 | C98: Итого за день: | F98: =F89+F97 -> 1320 | G98: =G89+G97 -> 42.96 | H98: =H89+H97 -> 43.02 | I98: =I89+I97 -> 180.48 | J98: =J89+J97 -> 1280 | L98: =L89+L97 -> 208
A99: 2 | B99: 2 | C99: Завтрак | D99: гор.блюдо | E99: Пудинг из творога, запеченный с изюмом, с молоком сгущенным | F99: 170 | G99: 13.74 | H99: 14.78 | I99: 35.9 | J99: 324 | K99: 240 | L99: 47.7
D100: гор.напиток | E100: Чай с лимоном и сахаром | F100: 200 | G100: 0.18 | H100: 0.04 | I100: 10.14 | J100: 42 | K100: 423 | L100: 8
D101: хлеб | E101: Батон нарезной из муки высшего сорта | F101: 25 | G101: 1.93 | H101: 0.75 | I101: 12.53 | J101: 65 | K101: 1 | L101: 2.2
D102: фрукты | E102: Фрукты (яблоко) | F102: 150 | G102: 0.2 | H102: 0.4 | I102: 8.8 | J102: 44 | K102: 403 | L102: 33.1
D103: итого | F103: =SUM(F99:F102) -> 545 | G103: =SUM(G99:G102) -> 16.05 | H103: =SUM(H99:H102) -> 15.97 | I103: =SUM(I99:I102) -> 67.37 | J103: =SUM(J99:J102) -> 475 | L103: =SUM(L99:L102) -> 91
A104: 2 | B104: =B99 -> 2 | C104: Обед | D104: закуска | E104: Салат из свеклы с яблоками | F104: 60 | G104: 0.88 | H104: 3.65 | I104: 5.17 | J104: 57 | K104: 57 | L104: 10.1
D105: 1 блюдо | E105: Суп из овощей с птицей и сметаной | F105: 210 | G105: 3.94 | H105: 6.13 | I105: 11.65 | J105: 103 | K105: 99 | L105: 20.1
D106: 2 блюдо | E106: Гуляш | F106: 90 | G106: 12.8 | H106: 10.02 | I106: 3.02 | J106: 156 | K106: 260 | L106: 55.6
D107: гарнир | E107: Макаронные изделия отварные | F107: 150 | G107: 2.64 | H107: 4.8 | I107: 28 | J107: 184 | K107: 331 | L107: 13.1
D108: напиток | E108: Компот из фруктов свежих | F108: 200 | G108: 0.44 | H108: 0 | I108: 29.56 | J108: 120 | K108: 402 | L108: 13.1
D109: хлеб бел. | E109: Хлеб крестьянский | F109: 25 | G109: 1.16 | H109: 0.45 | I109: 7.52 | J109: 39 | K109: 1 | L109: 2.2
D110: хлеб черн. | E110: Хлеб ржано-пшеничный обагащенный витаминным комплексом | F110: 40 | G110: 2.64 | H110: 0.48 | I110: 15.8 | J110: 78 | K110: 2 | L110: 2.8
D111: итого | F111: =SUM(F104:F110) -> 775 | G111: =SUM(G104:G110) -> 24.5 | H111: =SUM(H104:H110) -> 25.53 | I111: =SUM(I104:I110) -> 100.72 | J111: =SUM(J104:J110) -> 737 | L111: =SUM(L104:L110) -> 117
A112: =A99 -> 2 | B112: =B99 -> 2 | C112: Итого за день: | F112: =F103+F111 -> 1320 | G112: =G103+G111 -> 40.55 | H112: =H103+H111 -> 41.5 | I112: =I103+I111 -> 168.09 | J112: =J103+J111 -> 1212 | L112: =L103+L111 -> 208
A113: 2 | B113: 3 | C113: Завтрак | D113: гор.блюдо | E113: Биточек из филе цыпленка | F113: 50 | G113: 7.15 | H113: 4.16 | I113: 7.32 | J113: 113 | K113: 315 | L113: 49.4
E114: Рис припущенный с маслом сливочным | F114: 180 | G114: 8.66 | H114: 5.6 | I114: 24.03 | J114: 178 | K114: 189 | L114: 19.3
D115: гор.напиток | E115: Чай с сахаром | F115: 200 | G115: 0.14 | H115: 0.04 | I115: 10.02 | J115: 42 | K115: 420 | L115: 6.8
E116: Пряник | F116: 50 | G116: 3.12 | H116: 6.87 | I116: 12.97 | J116: 120 | K116: 6 | L116: 13.3
D117: хлеб | E117: Батон нарезной из муки высшего сорта | F117: 25 | G117: 1.93 | H117: 0.75 | I117: 12.53 | J117: 65 | K117: 1 | L117: 2.2
D118: итого | F118: =SUM(F113:F117) -> 505 | G118: =SUM(G113:G117) -> 21 | H118: =SUM(H113:H117) -> 17.42 | I118: =SUM(I113:I117) -> 66.87 | J118: =SUM(J113:J117) -> 518 | L118: =SUM(L113:L117) -> 91
A119: 2 | B119: =B113 -> 3 | C119: Обед | D119: закуска | E119: Овощи свежие порционно (огурец) | F119: 60 | G119: 0.42 | H119: 4.3 | I119: 3.14 | J119: 52 | K119: 71 | L119: 13.4
D120: 1 блюдо | E120: Борщ с капустой и картофелем, говядиной и сметаной | F120: 210 | G120: 3.12 | H120: 5.95 | I120: 10.1 | J120: 106 | K120: 82 | L120: 22.1
D121: 2 блюдо | E121: Жаркое по-домашнему (говядина) | F121: 240 | G121: 15.64 | H121: 13.5 | I121: 37.46 | J121: 344 | K121: 259 | L121: 64.3
D122: напиток | E122: Компот из свежих яблок | F122: 200 | G122: 0.16 | H122: 0.16 | I122: 27.88 | J122: 114 | K122: 394 | L122: 12.2
D123: хлеб бел. | E123: Хлеб крестьянский | F123: 25 | G123: 1.16 | H123: 0.45 | I123: 7.52 | J123: 39 | K123: 1 | L123: 2.2
D124: хлеб черн. | E124: Хлеб ржано-пшеничный обагащенный витаминным комплексом | F124: 40 | G124: 2.64 | H124: 0.48 | I124: 15.8 | J124: 78 | K124: 2 | L124: 2.8
D125: итого | F125: =SUM(F119:F124) -> 775 | G125: =SUM(G119:G124) -> 23.14 | H125: =SUM(H119:H124) -> 24.84 | I125: =SUM(I119:I124) -> 101.9 | J125: =SUM(J119:J124) -> 733 | L125: =SUM(L119:L124) -> 117
A126: =A113 -> 2 | B126: =B113 -> 3 | C126: Итого за день: | F126: =F118+F125 -> 1280 | G126: =G118+G125 -> 44.14 | H126: =H118+H125 -> 42.26 | I126: =I118+I125 -> 168.77 | J126: =J118+J125 -> 1251 | L126: =L118+L125 -> 208
A127: 2 | B127: 4 | C127: Завтрак | D127: гор.блюдо | E127: Каша гречневая молочная с маслом сливочным | F127: 180 | G127: 8.35 | H127: 5.68 | I127: 31.14 | J127: 245 | K127: 183 | L127: 25.5
E128: Сыр порционно | F128: 15 | G128: 3.95 | H128: 3.99 | I128: 0 | J128: 52 | K128: 14 | L128: 14.4
D129: гор.напиток | E129: Какао на молоке | F129: 200 | G129: 3.86 | H129: 3.84 | I129: 14.7 | J129: 108 | K129: 421 | L129: 15.5
D130: хлеб | E130: Батон нарезной из муки высшего сорта | F130: 25 | G130: 1.93 | H130: 0.75 | I130: 12.53 | J130: 65 | K130: 1 | L130: 2.2
E131: Йогурт в индивидуальной упаковке, м.д.ж. 2,5% | F131: 125 | G131: 3.1 | H131: 2.5 | I131: 18 | J131: 107 | K131: 3 | L131: 33.4
D132: итого | F132: =SUM(F127:F131) -> 545 | G132: =SUM(G127:G131) -> 21.19 | H132: =SUM(H127:H131) -> 16.76 | I132: =SUM(I127:I131) -> 76.37 | J132: =SUM(J127:J131) -> 577 | L132: =SUM(L127:L131) -> 91
A133: 2 | B133: =B127 -> 4 | C133: Обед | D133: закуска | E133: Овощи свежие порционно (огурец) | F133: 60 | G133: 0.48 | H133: 0.06 | I133: 1.02 | J133: 9 | K133: 51 | L133: 12.1
D134: 1 блюдо | E134: Рассольник "Ленинградский" с мясом цыпленка, со сметаной | F134: 210 | G134: 3.38 | H134: 5.06 | I134: 13.71 | J134: 134 | K134: 96 | L134: 19.4
D135: 2 блюдо | E135: Фрикассе из мяса птицы | F135: 90 | G135: 12.8 | H135: 9.4 | I135: 16.93 | J135: 162 | K135: 331 | L135: 47.6
D136: гарнир | E136: Рагу овощное | F136: 150 | G136: 2.51 | H136: 11 | I136: 28.36 | J136: 206 | K136: 287 | L136: 20.3
D137: напиток | E137: Компот из свежих фруктов | F137: 200 | G137: 0.16 | H137: 0.16 | I137: 19 | J137: 80 | K137: 394 | L137: 12.6
D138: хлеб бел. | E138: Хлеб крестьянский | F138: 25 | G138: 1.16 | H138: 0.45 | I138: 7.52 | J138: 39 | K138: 1 | L138: 2.2
D139: хлеб черн. | E139: Хлеб ржано-пшеничный обагащенный витаминным комплексом | F139: 40 | G139: 2.64 | H139: 0.48 | I139: 15.8 | J139: 78 | K139: 2 | L139: 2.8
D140: итого | F140: =SUM(F133:F139) -> 775 | G140: =SUM(G133:G139) -> 23.13 | H140: =SUM(H133:H139) -> 26.61 | I140: =SUM(I133:I139) -> 102.34 | J140: =SUM(J133:J139) -> 708 | L140: =SUM(L133:L139) -> 117
A141: =A127 -> 2 | B141: =B127 -> 4 | C141: Итого за день: | F141: =F132+F140 -> 1320 | G141: =G132+G140 -> 44.32 | H141: =H132+H140 -> 43.37 | I141: =I132+I140 -> 178.71 | J141: =J132+J140 -> 1285 | L141: =L132+L140 -> 208
A142: 2 | B142: 5 | C142: Завтрак | D142: гор.блюдо | E142: Тефтели с соусом | F142: 100 | G142: 10.88 | H142: 10.32 | I142: 11.74 | J142: 171 | K142: 546 | L142: 34.9
E143: Макаронные изделия отварные | F143: 150 | G143: 2.64 | H143: 4.8 | I143: 28 | J143: 184 | K143: 331 | L143: 12.8
D144: гор.напиток | E144: Чай с лимоном и сахаром | F144: 200 | G144: 0.18 | H144: 0.04 | I144: 10.14 | J144: 42 | K144: 423 | L144: 8
E145: Фрукты (мандарин) | F145: 130 | G145: 0.8 | H145: 0.2 | I145: 7.5 | J145: 38 | L145: 33.1
D146: хлеб | E146: Батон нарезной из муки высшего сорта | F146: 25 | G146: 1.93 | H146: 0.75 | I146: 12.53 | J146: 65 | K146: 1 | L146: 2.2
D147: итого | F147: =SUM(F142:F146) -> 605 | G147: =SUM(G142:G146) -> 16.43 | H147: =SUM(H142:H146) -> 16.11 | I147: =SUM(I142:I146) -> 69.91 | J147: =SUM(J142:J146) -> 500 | L147: =SUM(L142:L146) -> 91
A148: 2 | B148: =B142 -> 5 | C148: Обед | D148: закуска | E148: Салат из белокочанной капусты | F148: 60 | G148: 0.73 | H148: 4.1 | I148: 3.9 | J148: 36 | K148: 51 | L148: 13.7
D149: 1 блюдо | E149: Суп картофельный с рыбными консервами | F149: 200 | G149: 3.89 | H149: 6.92 | I149: 12.38 | J149: 133 | K149: 87 | L149: 19.8
D150: 2 блюдо | E150: Плов куриный | F150: 240 | G150: 16.12 | H150: 11.83 | I150: 38.95 | J150: 349 | K150: 331 | L150: 63.2
D151: напиток | E151: Напиток из плодов шиповника | F151: 200 | G151: 0.2 | H151: 0 | I151: 19 | J151: 80 | K151: 484 | L151: 15.9
D152: хлеб бел. | E152: Хлеб крестьянский | F152: 25 | G152: 1.93 | H152: 0.75 | I152: 12.53 | J152: 65 | K152: 1 | L152: 2.2
D153: хлеб черн. | E153: Хлеб ржано-пшеничный обагащенный витаминными | F153: 40 | G153: 2.64 | H153: 0.48 | I153: 15.8 | J153: 78 | K153: 2 | L153: 2.2
D154: итого | F154: =SUM(F148:F153) -> 765 | G154: =SUM(G148:G153) -> 25.51 | H154: =SUM(H148:H153) -> 24.08 | I154: =SUM(I148:I153) -> 102.56 | J154: =SUM(J148:J153) -> 741 | L154: =SUM(L148:L153) -> 117
A155: =A142 -> 2 | B155: =B142 -> 5 | C155: Итого за день: | F155: =F147+F154 -> 1370 | G155: =G147+G154 -> 41.94 | H155: =H147+H154 -> 40.19 | I155: =I147+I154 -> 172.47 | J155: =J147+J154 -> 1241 | L155: =L147+L154 -> 208
A156: 2 | B156: 6 | C156: Завтрак | D156: гор.блюдо | E156: Каша овсянная молочная с маслом сливочным | F156: 180 | G156: 5.28 | H156: 8.1 | I156: 25.32 | J156: 214 | K156: 189 | L156: 27.6
D157: гор.напиток | E157: Чай с молоком и сахаром | F157: 200 | G157: 1.14 | H157: 0.84 | I157: 12.02 | J157: 56 | K157: 421 | L157: 12.7
D158: хлеб | E158: Батон нарезной из муки высшего сорта | F158: 25 | G158: 1.93 | H158: 0.75 | I158: 12.53 | J158: 65 | K158: 1 | L158: 2.2
D159: фрукты | E159: Йогурт в индивидуальной упаковке, м.д.ж. 2,5% | F159: 125 | G159: 3.1 | H159: 2.5 | I159: 18 | J159: 107 | K159: 3 | L159: 33.1
E160: Бутерброд с сыром | F160: 40 | G160: 5.88 | H160: 6.14 | I160: 12.53 | J160: 117 | K160: 4 | L160: 15.4
D161: итого | F161: =SUM(F156:F160) -> 570 | G161: =SUM(G156:G160) -> 17.33 | H161: =SUM(H156:H160) -> 18.33 | I161: =SUM(I156:I160) -> 80.4 | J161: =SUM(J156:J160) -> 559 | L161: =SUM(L156:L160) -> 91
A162: =A156 -> 2 | B162: 6 | C162: Обед | D162: закуска | E162: Овощи свежие порционно (томат), масло растительное | F162: 60 | G162: 0.73 | H162: 5.1 | I162: 4.4 | J162: 76 | K162: 51 | L162: 15.4
D163: 1 блюдо | E163: Суп картофельный с горохом, птицей со сметаной | F163: 210 | G163: 5.36 | H163: 3.85 | I163: 15.08 | J163: 104 | K163: 102 | L163: 20.1
D164: 2 блюдо | E164: Рыба (филе минтая) тушеная с овощами | F164: 90 | G164: 9.46 | H164: 6.72 | I164: 4.83 | J164: 124 | K164: 254 | L164: 26.6
D165: гарнир | E165: Картофель запеченый | F165: 150 | G165: 4.35 | H165: 7.37 | I165: 35.46 | J165: 207 | K165: 133 | L165: 18.8
D166: напиток | E166: Сок фруктовый | F166: 200 | G166: 0.2 | H166: 0 | I166: 19 | J166: 86 | K166: 484 | L166: 31.1
D167: хлеб бел. | E167: Хлеб крестьянский | F167: 25 | G167: 1.16 | H167: 0.45 | I167: 7.52 | J167: 39 | K167: 1 | L167: 2.2
D168: хлеб черн. | E168: Хлеб ржано-пшеничный обагащенный витаминным комплексом | F168: 40 | G168: 2.64 | H168: 0.48 | I168: 15.8 | J168: 78 | K168: 2 | L168: 2.8
D169: итого | F169: =SUM(F162:F168) -> 775 | G169: =SUM(G162:G168) -> 23.9 | H169: =SUM(H162:H168) -> 23.97 | I169: =SUM(I162:I168) -> 102.09 | J169: =SUM(J162:J168) -> 714 | L169: =SUM(L162:L168) -> 117
A170: =A156 -> 2 | B170: =B156 -> 6 | C170: Итого за день: | F170: =F161+F169 -> 1345 | G170: =G161+G169 -> 41.23 | H170: =H161+H169 -> 42.3 | I170: =I161+I169 -> 182.49 | J170: =J161+J169 -> 1273 | L170: =L161+L169 -> 208
